[Event "Titled Tuesday Blitz April 25 Late 2023"]
[White "Nakamura, Hikaru"]
[Black "O`Gorman, Tom"]
[WhiteFideId "2016192"]
[BlackFideId "2508249"]
[WhiteElo "2885"]
[BlackElo "2271"]
[Result "1-0"]
[Round "02"]
[TimeControl "180+2"]
[Date "2023.04.25"]
[WhiteClock "0:01:14"]
[BlackClock "0:00:11"]

1. Nf3 {[%clk 0:03:00]}  Nf6 {[%clk 0:02:58]} 2. e3 {[%clk 0:02:59]}  g6 {[%clk 0:02:57]} 3. b3 {[%clk 0:02:58]}  Bg7 {[%clk 0:02:57]} 4. Bb2 {[%clk 0:02:59]}  O-O {[%clk 0:02:57]} 5. d4 {[%clk 0:02:59]}  d6 {[%clk 0:02:58]} 6. Be2 {[%clk 0:02:59]}  c5 {[%clk 0:02:58]} 7. O-O {[%clk 0:02:59]}  cxd4 {[%clk 0:02:58]} 8. Nxd4 {[%clk 0:02:58]}  Nc6 {[%clk 0:02:42]} 9. c4 {[%clk 0:02:54]}  Nxd4 {[%clk 0:02:37]} 10. Bxd4 {[%clk 0:02:49]}  Bd7 {[%clk 0:02:34]} 11. Bf3 {[%clk 0:02:47]}  Bc6 {[%clk 0:02:34]} 12. Nd2 {[%clk 0:02:46]}  Qd7 {[%clk 0:02:32]} 13. Rc1 {[%clk 0:02:45]}  Rac8 {[%clk 0:02:29]} 14. Bxc6 {[%clk 0:02:39]}  Qxc6 {[%clk 0:02:21]} 15. Nf3 {[%clk 0:02:33]}  Ne4 {[%clk 0:02:17]} 16. Bxg7 {[%clk 0:02:29]}  Kxg7 {[%clk 0:02:17]} 17. Nd4 {[%clk 0:02:29]}  Qd7 {[%clk 0:02:13]} 18. f3 {[%clk 0:02:27]}  Nf6 {[%clk 0:02:13]} 19. e4 {[%clk 0:02:27]}  a6 {[%clk 0:02:10]} 20. Qe2 {[%clk 0:02:21]}  Qc7 {[%clk 0:02:04]} 21. Rcd1 {[%clk 0:02:19]}  Qc5 {[%clk 0:01:41]} 22. Kh1 {[%clk 0:02:19]}  Rb8 {[%clk 0:01:41]} 23. Nc2 {[%clk 0:02:13]}  b5 {[%clk 0:01:38]} 24. Ne3 {[%clk 0:02:13]}  Rfc8 {[%clk 0:01:36]} 25. Rd3 {[%clk 0:02:09]}  a5 {[%clk 0:01:29]} 26. g4 {[%clk 0:01:57]}  h5 {[%clk 0:01:26]} 27. g5 {[%clk 0:01:44]}  Qxg5 {[%clk 0:01:12]} 28. f4 {[%clk 0:01:44]}  Qc5 {[%clk 0:01:06]} 29. e5 {[%clk 0:01:45]}  dxe5 {[%clk 0:00:56]} 30. fxe5 {[%clk 0:01:45]}  Ng4 {[%clk 0:00:32]} 31. Nxg4 {[%clk 0:01:21]}  hxg4 {[%clk 0:00:33]} 32. e6 {[%clk 0:01:22]}  f5 {[%clk 0:00:27]} 33. Rd5 {[%clk 0:01:21]}  Qc6 {[%clk 0:00:24]} 34. Qe5+ {[%clk 0:01:21]}  Kg8 {[%clk 0:00:21]} 35. Rxf5 {[%clk 0:01:20]}  gxf5 {[%clk 0:00:20]} 36. Qxf5 {[%clk 0:01:20]}  Rd8 {[%clk 0:00:18]} 37. Qxg4+ {[%clk 0:01:17]}  Kh8 {[%clk 0:00:18]} 38. Qh3+ {[%clk 0:01:16]}  Kg8 {[%clk 0:00:19]} 39. Qg2+ {[%clk 0:01:16]}  Kf8 {[%clk 0:00:11]} 40. Rf5+ {[%clk 0:01:14]} 1-0


[Site "https://www.chess.com"]

[Event "Titled Tuesday Blitz April 25 Late 2023"]
[White "Bruedigam, Martin"]
[Black "Nihal Sarin"]
[WhiteFideId "24608033"]
[BlackFideId "25092340"]
[WhiteElo "2331"]
[BlackElo "2689"]
[Result "0-1"]
[Round "02"]
[TimeControl "180+2"]
[Date "2023.04.25"]
[WhiteClock "0:00:01"]
[BlackClock "0:01:37"]

1. d4 {[%clk 0:03:00]}  f5 {[%clk 0:02:57]} 2. Nc3 {[%clk 0:02:59]}  Nf6 {[%clk 0:02:56]} 3. Bg5 {[%clk 0:02:59]}  d5 {[%clk 0:02:57]} 4. Bxf6 {[%clk 0:02:59]}  exf6 {[%clk 0:02:58]} 5. e3 {[%clk 0:02:59]}  c6 {[%clk 0:02:58]} 6. Bd3 {[%clk 0:02:53]}  Be6 {[%clk 0:02:53]} 7. Nh3 {[%clk 0:02:42]}  g6 {[%clk 0:02:49]} 8. Nf4 {[%clk 0:02:41]}  Bf7 {[%clk 0:02:50]} 9. h3 {[%clk 0:02:40]}  h5 {[%clk 0:02:43]} 10. Qf3 {[%clk 0:02:36]}  Bd6 {[%clk 0:02:38]} 11. g4 {[%clk 0:02:26]}  hxg4 {[%clk 0:02:34]} 12. hxg4 {[%clk 0:02:26]}  Rxh1+ {[%clk 0:02:35]} 13. Qxh1 {[%clk 0:02:25]}  Bxf4 {[%clk 0:02:36]} 14. gxf5 {[%clk 0:01:32]}  Bd6 {[%clk 0:02:17]} 15. fxg6 {[%clk 0:01:26]}  Bg8 {[%clk 0:02:11]} 16. O-O-O {[%clk 0:01:09]}  Kd7 {[%clk 0:02:11]} 17. e4 {[%clk 0:01:06]}  Kc7 {[%clk 0:02:00]} 18. exd5 {[%clk 0:00:55]}  cxd5 {[%clk 0:02:01]} 19. Nb5+ {[%clk 0:00:43]}  Kb6 {[%clk 0:02:00]} 20. Re1 {[%clk 0:00:19]}  Nc6 {[%clk 0:01:58]} 21. Kb1 {[%clk 0:00:15]}  Bb4 {[%clk 0:01:51]} 22. c3 {[%clk 0:00:15]}  a6 {[%clk 0:01:52]} 23. Na3 {[%clk 0:00:09]}  Bxa3 {[%clk 0:01:52]} 24. bxa3 {[%clk 0:00:10]}  Qd6 {[%clk 0:01:46]} 25. Ka1 {[%clk 0:00:06]}  Qxa3 {[%clk 0:01:44]} 26. Rb1+ {[%clk 0:00:07]}  Ka7 {[%clk 0:01:45]} 27. Rb3 {[%clk 0:00:07]}  Qe7 {[%clk 0:01:45]} 28. f4 {[%clk 0:00:07]}  f5 {[%clk 0:01:41]} 29. Bxf5 {[%clk 0:00:06]}  Qf6 {[%clk 0:01:41]} 30. Bd7 {[%clk 0:00:04]}  Qxg6 {[%clk 0:01:38]} 31. Qb1 {[%clk 0:00:01]}  Qxb1+ {[%clk 0:01:38]} 32. Kxb1 {[%clk 0:00:01]}  Na5 {[%clk 0:01:37]} 33. Rb2 {[%clk 0:00:01]}  Rf8 {[%clk 0:01:37]} 0-1


[Site "https://www.chess.com"]

[Event "Titled Tuesday Blitz April 25 Late 2023"]
[White "Naroditsky, Daniel"]
[Black "Ezat, Mohamed"]
[WhiteFideId "2026961"]
[BlackFideId "10600906"]
[WhiteElo "2633"]
[BlackElo "2386"]
[Result "1/2-1/2"]
[Round "02"]
[TimeControl "180+2"]
[Date "2023.04.25"]
[WhiteClock "0:00:23"]
[BlackClock "0:00:28"]

1. d4 {[%clk 0:03:00]}  Nf6 {[%clk 0:02:59]} 2. Nc3 {[%clk 0:03:01]}  d5 {[%clk 0:02:59]} 3. Bf4 {[%clk 0:03:02]}  c5 {[%clk 0:02:57]} 4. e4 {[%clk 0:03:03]}  cxd4 {[%clk 0:02:53]} 5. Qxd4 {[%clk 0:03:03]}  Nc6 {[%clk 0:02:52]} 6. Bb5 {[%clk 0:03:04]}  Bd7 {[%clk 0:02:52]} 7. Bxc6 {[%clk 0:03:05]}  Bxc6 {[%clk 0:02:52]} 8. e5 {[%clk 0:03:05]}  Ne4 {[%clk 0:02:52]} 9. e6 {[%clk 0:03:05]}  Qb6 {[%clk 0:02:30]} 10. exf7+ {[%clk 0:02:48]}  Kxf7 {[%clk 0:02:30]} 11. Qxb6 {[%clk 0:02:31]}  axb6 {[%clk 0:02:29]} 12. Nxe4 {[%clk 0:02:30]}  dxe4 {[%clk 0:02:29]} 13. Ne2 {[%clk 0:02:31]}  e6 {[%clk 0:02:25]} 14. Nd4 {[%clk 0:01:57]}  Bd5 {[%clk 0:02:18]} 15. a3 {[%clk 0:01:53]}  Bb4+ {[%clk 0:02:10]} 16. c3 {[%clk 0:01:40]}  Bc5 {[%clk 0:02:10]} 17. O-O-O {[%clk 0:01:40]}  Bxd4 {[%clk 0:02:06]} 18. Rxd4 {[%clk 0:01:41]}  b5 {[%clk 0:02:07]} 19. Rhd1 {[%clk 0:01:36]}  Rhd8 {[%clk 0:02:01]} 20. Bg5 {[%clk 0:01:30]}  Re8 {[%clk 0:01:57]} 21. Kd2 {[%clk 0:01:25]}  h6 {[%clk 0:01:55]} 22. Bh4 {[%clk 0:01:25]}  g5 {[%clk 0:01:51]} 23. Bg3 {[%clk 0:01:25]}  Bc6 {[%clk 0:01:47]} 24. Ke3 {[%clk 0:01:24]}  e5 {[%clk 0:01:40]} 25. Rd6 {[%clk 0:01:19]}  Re6 {[%clk 0:01:40]} 26. h4 {[%clk 0:01:16]}  Ke7 {[%clk 0:01:29]} 27. Rxe6+ {[%clk 0:01:00]}  Kxe6 {[%clk 0:01:29]} 28. hxg5 {[%clk 0:01:01]}  hxg5 {[%clk 0:01:29]} 29. Rh1 {[%clk 0:01:02]}  Rd8 {[%clk 0:01:29]} 30. Rh5 {[%clk 0:00:54]}  Kf5 {[%clk 0:01:28]} 31. Rh7 {[%clk 0:00:50]}  Rd3+ {[%clk 0:01:25]} 32. Ke2 {[%clk 0:00:51]}  Rd7 {[%clk 0:01:20]} 33. Rh8 {[%clk 0:00:50]}  Bd5 {[%clk 0:00:59]} 34. Re8 {[%clk 0:00:47]}  Bc4+ {[%clk 0:00:56]} 35. Ke1 {[%clk 0:00:48]}  Be6 {[%clk 0:00:52]} 36. Bh2 {[%clk 0:00:48]}  Rh7 {[%clk 0:00:48]} 37. Bg3 {[%clk 0:00:44]}  Rd7 {[%clk 0:00:46]} 38. Rf8+ {[%clk 0:00:37]}  Rf7 {[%clk 0:00:46]} 39. Rb8 {[%clk 0:00:34]}  Rd7 {[%clk 0:00:44]} 40. Re8 {[%clk 0:00:32]}  Kf6 {[%clk 0:00:39]} 41. Ra8 {[%clk 0:00:23]}  Kf5 {[%clk 0:00:37]} 42. a4 {[%clk 0:00:24]}  bxa4 {[%clk 0:00:37]} 43. Rxa4 {[%clk 0:00:24]}  b5 {[%clk 0:00:37]} 44. Ra5 {[%clk 0:00:21]}  Bc4 {[%clk 0:00:36]} 45. b3 {[%clk 0:00:21]}  Bxb3 {[%clk 0:00:36]} 46. Rxb5 {[%clk 0:00:22]}  Rd1+ {[%clk 0:00:30]} 47. Ke2 {[%clk 0:00:22]}  Bc4+ {[%clk 0:00:31]} 48. Kxd1 {[%clk 0:00:23]}  Bxb5 {[%clk 0:00:31]} 49. Kd2 {[%clk 0:00:23]}  Bf1 {[%clk 0:00:31]} 50. Ke3 {[%clk 0:00:23]}  Bxg2 {[%clk 0:00:30]} 51. c4 {[%clk 0:00:24]}  Ke6 {[%clk 0:00:29]} 52. c5 {[%clk 0:00:23]}  Kd5 {[%clk 0:00:29]} 53. c6 {[%clk 0:00:23]}  Kxc6 {[%clk 0:00:28]} 54. Bxe5 {[%clk 0:00:23]} 1/2-1/2


[Site "https://www.chess.com"]

[Event "Titled Tuesday Blitz April 25 Late 2023"]
[White "Di Berardino, Diego Rafael"]
[Black "Vachier-Lagrave, Maxime"]
[WhiteFideId "2105446"]
[BlackFideId "623539"]
[WhiteElo "2432"]
[BlackElo "2740"]
[Result "0-1"]
[Round "02"]
[TimeControl "180+2"]
[Date "2023.04.25"]
[WhiteClock "0:00:01"]
[BlackClock "0:01:11"]

1. e4 {[%clk 0:03:00]}  c6 {[%clk 0:02:58]} 2. d4 {[%clk 0:02:59]}  d5 {[%clk 0:02:59]} 3. exd5 {[%clk 0:03:00]}  cxd5 {[%clk 0:02:58]} 4. c4 {[%clk 0:03:01]}  Nf6 {[%clk 0:02:58]} 5. Nc3 {[%clk 0:03:02]}  e6 {[%clk 0:02:57]} 6. Nf3 {[%clk 0:03:02]}  Be7 {[%clk 0:02:56]} 7. cxd5 {[%clk 0:03:01]}  Nxd5 {[%clk 0:02:55]} 8. Bd3 {[%clk 0:03:01]}  Nc6 {[%clk 0:02:54]} 9. O-O {[%clk 0:03:00]}  Nf6 {[%clk 0:02:48]} 10. Re1 {[%clk 0:02:56]}  O-O {[%clk 0:02:44]} 11. a3 {[%clk 0:02:51]}  Bd7 {[%clk 0:02:36]} 12. Bc2 {[%clk 0:02:48]}  Rc8 {[%clk 0:02:35]} 13. Qd3 {[%clk 0:02:48]}  g6 {[%clk 0:02:32]} 14. Bh6 {[%clk 0:02:44]}  Re8 {[%clk 0:02:32]} 15. Rad1 {[%clk 0:02:44]}  Na5 {[%clk 0:02:21]} 16. Ne5 {[%clk 0:02:38]}  b5 {[%clk 0:01:59]} 17. d5 {[%clk 0:01:26]}  Nc4 {[%clk 0:01:52]} 18. Nxd7 {[%clk 0:00:49]}  Qxd7 {[%clk 0:01:53]} 19. dxe6 {[%clk 0:00:48]}  Qxd3 {[%clk 0:01:52]} 20. exf7+ {[%clk 0:00:47]}  Kxf7 {[%clk 0:01:53]} 21. Rxd3 {[%clk 0:00:44]}  Bxa3 {[%clk 0:01:51]} 22. Rxe8 {[%clk 0:00:28]}  Rxe8 {[%clk 0:01:52]} 23. Kf1 {[%clk 0:00:20]}  Bb4 {[%clk 0:01:47]} 24. g3 {[%clk 0:00:12]}  a6 {[%clk 0:01:39]} 25. Rf3 {[%clk 0:00:08]}  Ke6 {[%clk 0:01:29]} 26. Ne2 {[%clk 0:00:01]}  Ng4 {[%clk 0:01:24]} 27. Nd4+ {[%clk 0:00:01]}  Kd5 {[%clk 0:01:23]} 28. Bg7 {[%clk 0:00:02]}  Nxh2+ {[%clk 0:01:22]} 29. Kg2 {[%clk 0:00:02]}  Nxf3 {[%clk 0:01:23]} 30. Nxf3 {[%clk 0:00:02]}  Re2 {[%clk 0:01:21]} 31. Bd3 {[%clk 0:00:01]}  Re7 {[%clk 0:01:18]} 32. Bh8 {[%clk 0:00:01]}  Bc5 {[%clk 0:01:15]} 33. Ng5 {[%clk 0:00:01]}  Nd6 {[%clk 0:01:12]} 34. b3 {[%clk 0:00:01]}  Kc6 {[%clk 0:01:11]} 0-1


[Site "https://www.chess.com"]

[Event "Titled Tuesday Blitz April 25 Late 2023"]
[White "Caruana, Fabiano"]
[Black "Taichman, Ori"]
[WhiteFideId "2020009"]
[BlackFideId "2804069"]
[WhiteElo "2837"]
[BlackElo "2237"]
[Result "1-0"]
[Round "02"]
[TimeControl "180+2"]
[Date "2023.04.25"]
[WhiteClock "0:00:48"]
[BlackClock "0:00:09"]

1. d4 {[%clk 0:03:00]}  Nf6 {[%clk 0:02:59]} 2. Nf3 {[%clk 0:02:56]}  g6 {[%clk 0:03:00]} 3. g3 {[%clk 0:02:54]}  Bg7 {[%clk 0:03:00]} 4. Bg2 {[%clk 0:02:51]}  O-O {[%clk 0:03:00]} 5. O-O {[%clk 0:02:50]}  d6 {[%clk 0:03:00]} 6. c4 {[%clk 0:02:46]}  Nc6 {[%clk 0:03:00]} 7. Nc3 {[%clk 0:02:39]}  Rb8 {[%clk 0:03:00]} 8. Bf4 {[%clk 0:02:35]}  Ng4 {[%clk 0:02:59]} 9. Bg5 {[%clk 0:02:32]}  h6 {[%clk 0:02:56]} 10. Bc1 {[%clk 0:02:32]}  e5 {[%clk 0:02:54]} 11. d5 {[%clk 0:02:30]}  Ne7 {[%clk 0:02:53]} 12. h3 {[%clk 0:02:30]}  Nf6 {[%clk 0:02:52]} 13. e4 {[%clk 0:02:29]}  Nd7 {[%clk 0:02:46]} 14. Be3 {[%clk 0:02:25]}  a6 {[%clk 0:02:46]} 15. Ne1 {[%clk 0:02:22]}  f5 {[%clk 0:02:45]} 16. Nd3 {[%clk 0:02:21]}  c5 {[%clk 0:02:31]} 17. dxc6 {[%clk 0:02:18]}  bxc6 {[%clk 0:02:31]} 18. Qd2 {[%clk 0:02:13]}  fxe4 {[%clk 0:02:11]} 19. Nxe4 {[%clk 0:02:12]}  d5 {[%clk 0:02:12]} 20. Nd6 {[%clk 0:02:11]}  e4 {[%clk 0:02:04]} 21. Nf4 {[%clk 0:02:04]}  Rxb2 {[%clk 0:02:02]} 22. Qc1 {[%clk 0:02:04]}  Ne5 {[%clk 0:01:37]} 23. Nxc8 {[%clk 0:02:03]}  Qxc8 {[%clk 0:01:33]} 24. Bc5 {[%clk 0:02:01]}  Rxf4 {[%clk 0:01:03]} 25. Qxf4 {[%clk 0:01:37]}  Nd3 {[%clk 0:01:02]} 26. Qd6 {[%clk 0:01:36]}  Nf5 {[%clk 0:00:58]} 27. Qxg6 {[%clk 0:01:36]}  Nxc5 {[%clk 0:00:57]} 28. cxd5 {[%clk 0:01:35]}  e3 {[%clk 0:00:39]} 29. dxc6 {[%clk 0:01:03]}  Rxf2 {[%clk 0:00:20]} 30. Rxf2 {[%clk 0:01:02]}  exf2+ {[%clk 0:00:20]} 31. Kxf2 {[%clk 0:01:02]}  Kh8 {[%clk 0:00:15]} 32. Rd1 {[%clk 0:00:59]}  Bd4+ {[%clk 0:00:15]} 33. Rxd4 {[%clk 0:00:59]}  Nxd4 {[%clk 0:00:15]} 34. Qxh6+ {[%clk 0:00:58]}  Kg8 {[%clk 0:00:15]} 35. Qg6+ {[%clk 0:00:59]}  Kh8 {[%clk 0:00:14]} 36. Qf6+ {[%clk 0:00:57]}  Kh7 {[%clk 0:00:13]} 37. Qxd4 {[%clk 0:00:53]}  Qf8+ {[%clk 0:00:12]} 38. Kg1 {[%clk 0:00:53]}  Ne6 {[%clk 0:00:11]} 39. Qe4+ {[%clk 0:00:52]}  Kh8 {[%clk 0:00:08]} 40. Qxe6 {[%clk 0:00:51]}  a5 {[%clk 0:00:09]} 41. Kh2 {[%clk 0:00:51]}  a4 {[%clk 0:00:09]} 42. c7 {[%clk 0:00:51]}  a3 {[%clk 0:00:08]} 43. c8=Q {[%clk 0:00:50]}  Kh7 {[%clk 0:00:09]} 44. Be4+ {[%clk 0:00:48]} 1-0


[Site "https://www.chess.com"]

[Event "Titled Tuesday Blitz April 25 Late 2023"]
[White "Bustamante Orta, Jorge"]
[Black "Firouzja, Alireza"]
[WhiteFideId "5121710"]
[BlackFideId "12573981"]
[WhiteElo "2165"]
[BlackElo "2904"]
[Result "0-1"]
[Round "02"]
[TimeControl "180+2"]
[Date "2023.04.25"]
[WhiteClock "0:01:46"]
[BlackClock "0:01:35"]

1. b3 {[%clk 0:03:00]}  e5 {[%clk 0:02:59]} 2. Bb2 {[%clk 0:03:01]}  Nc6 {[%clk 0:02:59]} 3. c4 {[%clk 0:03:02]}  Nge7 {[%clk 0:02:56]} 4. e3 {[%clk 0:03:02]}  Ng6 {[%clk 0:02:53]} 5. Nf3 {[%clk 0:02:57]}  Be7 {[%clk 0:02:51]} 6. d4 {[%clk 0:02:55]}  Bb4+ {[%clk 0:02:42]} 7. Nc3 {[%clk 0:02:52]}  d6 {[%clk 0:02:33]} 8. a3 {[%clk 0:02:50]}  Bxc3+ {[%clk 0:02:33]} 9. Bxc3 {[%clk 0:02:50]}  e4 {[%clk 0:02:29]} 10. Nd2 {[%clk 0:02:50]}  f5 {[%clk 0:02:29]} 11. g4 {[%clk 0:02:49]}  O-O {[%clk 0:02:27]} 12. Qc2 {[%clk 0:02:38]}  Qh4 {[%clk 0:02:24]} 13. Be2 {[%clk 0:02:28]}  fxg4 {[%clk 0:02:21]} 14. Nxe4 {[%clk 0:02:25]}  Bf5 {[%clk 0:02:20]} 15. Rf1 {[%clk 0:02:25]}  g3 {[%clk 0:02:11]} 16. Bd3 {[%clk 0:02:05]}  gxf2+ {[%clk 0:01:37]} 17. Qxf2 {[%clk 0:01:46]}  Bxe4 {[%clk 0:01:36]} 18. Qxh4 {[%clk 0:01:46]}  Rxf1+ {[%clk 0:01:35]} 0-1


[Site "https://www.chess.com"]

[Event "Titled Tuesday Blitz April 25 Late 2023"]
[White "Sarana, Alexey"]
[Black "Rosen, Eric"]
[WhiteFideId "24133795"]
[BlackFideId "2032562"]
[WhiteElo "2714"]
[BlackElo "2331"]
[Result "1-0"]
[Round "02"]
[TimeControl "180+2"]
[Date "2023.04.25"]
[WhiteClock "0:01:59"]
[BlackClock "0:00:03"]

1. d4 {[%clk 0:03:00]}  d5 {[%clk 0:02:59]} 2. c4 {[%clk 0:03:01]}  e6 {[%clk 0:03:00]} 3. Nc3 {[%clk 0:03:02]}  Nf6 {[%clk 0:03:00]} 4. cxd5 {[%clk 0:03:02]}  exd5 {[%clk 0:03:01]} 5. Bg5 {[%clk 0:03:02]}  c6 {[%clk 0:03:02]} 6. e3 {[%clk 0:03:02]}  Bd6 {[%clk 0:03:03]} 7. Bd3 {[%clk 0:02:59]}  h6 {[%clk 0:03:02]} 8. Bh4 {[%clk 0:02:59]}  O-O {[%clk 0:03:03]} 9. Nf3 {[%clk 0:03:00]}  Be6 {[%clk 0:03:02]} 10. Ne5 {[%clk 0:02:59]}  c5 {[%clk 0:03:02]} 11. O-O {[%clk 0:02:58]}  cxd4 {[%clk 0:03:01]} 12. exd4 {[%clk 0:02:58]}  Nc6 {[%clk 0:03:01]} 13. Nxc6 {[%clk 0:02:58]}  bxc6 {[%clk 0:03:01]} 14. Rc1 {[%clk 0:02:51]}  Rb8 {[%clk 0:02:27]} 15. Na4 {[%clk 0:02:50]}  g5 {[%clk 0:01:55]} 16. Bg3 {[%clk 0:02:49]}  Ne4 {[%clk 0:01:55]} 17. Rxc6 {[%clk 0:02:30]}  Nxg3 {[%clk 0:01:44]} 18. hxg3 {[%clk 0:02:29]}  Qd7 {[%clk 0:01:12]} 19. Ra6 {[%clk 0:02:27]}  Kg7 {[%clk 0:00:58]} 20. a3 {[%clk 0:02:19]}  Rfc8 {[%clk 0:00:57]} 21. b4 {[%clk 0:02:18]}  Rc6 {[%clk 0:00:45]} 22. Nc5 {[%clk 0:02:16]}  Qc7 {[%clk 0:00:38]} 23. Nxe6+ {[%clk 0:02:13]}  fxe6 {[%clk 0:00:38]} 24. Rxc6 {[%clk 0:02:11]}  Qxc6 {[%clk 0:00:38]} 25. Qg4 {[%clk 0:02:09]}  Kf6 {[%clk 0:00:20]} 26. f4 {[%clk 0:02:04]}  gxf4 {[%clk 0:00:11]} 27. Rxf4+ {[%clk 0:01:56]}  Bxf4 {[%clk 0:00:07]} 28. Qxf4+ {[%clk 0:01:57]}  Kg7 {[%clk 0:00:06]} 29. Qxb8 {[%clk 0:01:57]}  Qc1+ {[%clk 0:00:06]} 30. Kh2 {[%clk 0:01:58]}  h5 {[%clk 0:00:06]} 31. Qxa7+ {[%clk 0:01:58]}  Kf6 {[%clk 0:00:06]} 32. Qh7 {[%clk 0:01:58]}  h4 {[%clk 0:00:06]} 33. Qxh4+ {[%clk 0:01:58]}  Kf7 {[%clk 0:00:06]} 34. Qf4+ {[%clk 0:01:58]}  Qxf4 {[%clk 0:00:03]} 35. gxf4 {[%clk 0:01:59]} 1-0


[Site "https://www.chess.com"]

[Event "Titled Tuesday Blitz April 25 Late 2023"]
[White "Munoz, Francisco Javier"]
[Black "Bluebaum, Matthias"]
[WhiteFideId "128368"]
[BlackFideId "24651516"]
[WhiteElo "2383"]
[BlackElo "2638"]
[Result "0-1"]
[Round "02"]
[TimeControl "180+2"]
[Date "2023.04.25"]
[WhiteClock "0:00:02"]
[BlackClock "0:00:09"]

1. e4 {[%clk 0:03:00]}  e6 {[%clk 0:03:00]} 2. d4 {[%clk 0:03:00]}  d5 {[%clk 0:03:01]} 3. exd5 {[%clk 0:03:01]}  exd5 {[%clk 0:03:02]} 4. Nc3 {[%clk 0:03:02]}  c6 {[%clk 0:02:59]} 5. Bf4 {[%clk 0:03:01]}  Bd6 {[%clk 0:02:59]} 6. Qf3 {[%clk 0:03:00]}  Ne7 {[%clk 0:02:58]} 7. O-O-O {[%clk 0:02:59]}  O-O {[%clk 0:02:51]} 8. Bd3 {[%clk 0:02:59]}  Ng6 {[%clk 0:02:50]} 9. Bxd6 {[%clk 0:02:58]}  Qxd6 {[%clk 0:02:51]} 10. Nge2 {[%clk 0:02:58]}  Na6 {[%clk 0:02:45]} 11. h4 {[%clk 0:02:56]}  Nb4 {[%clk 0:02:37]} 12. h5 {[%clk 0:02:56]}  Nxd3+ {[%clk 0:02:38]} 13. Rxd3 {[%clk 0:02:55]}  Ne7 {[%clk 0:02:37]} 14. h6 {[%clk 0:02:52]}  g6 {[%clk 0:02:36]} 15. Nf4 {[%clk 0:02:35]}  Bf5 {[%clk 0:02:23]} 16. Re3 {[%clk 0:02:35]}  Bd7 {[%clk 0:02:09]} 17. Nce2 {[%clk 0:02:06]}  Nf5 {[%clk 0:02:02]} 18. Rb3 {[%clk 0:02:05]}  b6 {[%clk 0:01:58]} 19. g4 {[%clk 0:02:04]}  Ne7 {[%clk 0:01:57]} 20. Re3 {[%clk 0:02:01]}  Rae8 {[%clk 0:01:56]} 21. Ng3 {[%clk 0:01:56]}  c5 {[%clk 0:01:39]} 22. dxc5 {[%clk 0:01:56]}  bxc5 {[%clk 0:01:40]} 23. Rhe1 {[%clk 0:01:55]}  Bc6 {[%clk 0:01:35]} 24. Re5 {[%clk 0:01:10]}  d4 {[%clk 0:01:10]} 25. Qe2 {[%clk 0:01:09]}  f6 {[%clk 0:00:36]} 26. Rxe7 {[%clk 0:01:08]}  Qxf4+ {[%clk 0:00:36]} 27. Kb1 {[%clk 0:01:09]}  Qd6 {[%clk 0:00:17]} 28. f4 {[%clk 0:00:29]}  Rxe7 {[%clk 0:00:17]} 29. Qxe7 {[%clk 0:00:28]}  Qxe7 {[%clk 0:00:18]} 30. Rxe7 {[%clk 0:00:29]}  Rf7 {[%clk 0:00:17]} 31. Re1 {[%clk 0:00:10]}  Kf8 {[%clk 0:00:17]} 32. c3 {[%clk 0:00:10]}  dxc3 {[%clk 0:00:16]} 33. bxc3 {[%clk 0:00:11]}  Rb7+ {[%clk 0:00:16]} 34. Kc2 {[%clk 0:00:10]}  Ba4+ {[%clk 0:00:16]} 35. Kd3 {[%clk 0:00:11]}  Bb5+ {[%clk 0:00:15]} 36. Kc2 {[%clk 0:00:11]}  Rd7 {[%clk 0:00:14]} 37. Re6 {[%clk 0:00:10]}  Ba4+ {[%clk 0:00:13]} 38. Kb2 {[%clk 0:00:09]}  Kf7 {[%clk 0:00:13]} 39. f5 {[%clk 0:00:09]}  gxf5 {[%clk 0:00:13]} 40. gxf5 {[%clk 0:00:09]}  Rb7+ {[%clk 0:00:08]} 41. Ka3 {[%clk 0:00:08]}  Bc2 {[%clk 0:00:08]} 42. Ra6 {[%clk 0:00:08]}  Bd3 {[%clk 0:00:07]} 43. Ra5 {[%clk 0:00:08]}  c4 {[%clk 0:00:07]} 44. Ra6 {[%clk 0:00:06]}  Ke7 {[%clk 0:00:07]} 45. Nh5 {[%clk 0:00:06]}  Bxf5 {[%clk 0:00:07]} 46. Nxf6 {[%clk 0:00:04]}  Kf7 {[%clk 0:00:07]} 47. Nd5 {[%clk 0:00:04]}  Be6 {[%clk 0:00:07]} 48. Nf4 {[%clk 0:00:05]}  Bf5 {[%clk 0:00:06]} 49. Nd5 {[%clk 0:00:05]}  Bd3 {[%clk 0:00:06]} 50. Nf4 {[%clk 0:00:05]}  Re7 {[%clk 0:00:04]} 51. Rd6 {[%clk 0:00:04]}  Bf5 {[%clk 0:00:02]} 52. Nd5 {[%clk 0:00:04]}  Re6 {[%clk 0:00:03]} 53. Rd7+ {[%clk 0:00:04]}  Kg6 {[%clk 0:00:04]} 54. Rxa7 {[%clk 0:00:04]}  Kxh6 {[%clk 0:00:04]} 55. Nf4 {[%clk 0:00:04]}  Re3 {[%clk 0:00:04]} 56. Ra6+ {[%clk 0:00:04]}  Kg5 {[%clk 0:00:05]} 57. Nd5 {[%clk 0:00:04]}  Rd3 {[%clk 0:00:05]} 58. Ra5 {[%clk 0:00:03]}  h5 {[%clk 0:00:05]} 59. Ne7 {[%clk 0:00:03]}  Rf3 {[%clk 0:00:06]} 60. Kb4 {[%clk 0:00:03]}  h4 {[%clk 0:00:06]} 61. Ra8 {[%clk 0:00:03]}  h3 {[%clk 0:00:06]} 62. Rh8 {[%clk 0:00:02]}  Bg4 {[%clk 0:00:07]} 63. Nc6 {[%clk 0:00:01]}  Rf6 {[%clk 0:00:06]} 64. Nd4 {[%clk 0:00:02]}  Rh6 {[%clk 0:00:06]} 65. Rg8+ {[%clk 0:00:03]}  Kh4 {[%clk 0:00:06]} 66. Rf8 {[%clk 0:00:03]}  h2 {[%clk 0:00:07]} 67. Rf1 {[%clk 0:00:04]}  Kg3 {[%clk 0:00:07]} 68. Re1 {[%clk 0:00:04]}  h1=Q {[%clk 0:00:07]} 69. Rxh1 {[%clk 0:00:05]}  Rxh1 {[%clk 0:00:08]} 70. Kxc4 {[%clk 0:00:05]}  Ra1 {[%clk 0:00:08]} 71. Kb3 {[%clk 0:00:05]}  Kf4 {[%clk 0:00:08]} 72. a4 {[%clk 0:00:05]}  Bd1+ {[%clk 0:00:08]} 73. Kb4 {[%clk 0:00:04]}  Rxa4+ {[%clk 0:00:09]} 74. Kc5 {[%clk 0:00:05]}  Ra1 {[%clk 0:00:09]} 75. Kd6 {[%clk 0:00:05]}  Ke3 {[%clk 0:00:09]} 76. Nb5 {[%clk 0:00:04]}  Kd3 {[%clk 0:00:09]} 77. Kc5 {[%clk 0:00:04]}  Ba4 {[%clk 0:00:09]} 78. Nd4 {[%clk 0:00:02]}  Kxc3 {[%clk 0:00:09]} 79. Nf5 {[%clk 0:00:02]}  Kd3 {[%clk 0:00:10]} 80. Nd6 {[%clk 0:00:03]}  Rc1+ {[%clk 0:00:10]} 81. Kb4 {[%clk 0:00:03]}  Bd7 {[%clk 0:00:10]} 82. Nb7 {[%clk 0:00:03]}  Kd4 {[%clk 0:00:10]} 83. Ka5 {[%clk 0:00:02]}  Ra1+ {[%clk 0:00:10]} 84. Kb6 {[%clk 0:00:03]}  Bg4 {[%clk 0:00:10]} 85. Kc7 {[%clk 0:00:04]}  Kd5 {[%clk 0:00:10]} 86. Nd8 {[%clk 0:00:03]}  Rc1+ {[%clk 0:00:10]} 87. Kb6 {[%clk 0:00:03]}  Bf3 {[%clk 0:00:09]} 88. Nb7 {[%clk 0:00:03]}  Rb1+ {[%clk 0:00:09]} 89. Kc7 {[%clk 0:00:03]}  Bg4 {[%clk 0:00:08]} 90. Nd8 {[%clk 0:00:02]}  Be6 {[%clk 0:00:08]} 91. Nb7 {[%clk 0:00:02]}  Ke5 {[%clk 0:00:07]} 92. Nd8 {[%clk 0:00:02]}  Bd5 {[%clk 0:00:08]} 93. Kd7 {[%clk 0:00:01]}  Rb8 {[%clk 0:00:08]} 94. Ke7 {[%clk 0:00:02]}  Ra8 {[%clk 0:00:08]} 95. Kd7 {[%clk 0:00:03]}  Ra7+ {[%clk 0:00:08]} 96. Kc8 {[%clk 0:00:03]}  Kd6 {[%clk 0:00:09]} 97. Kb8 {[%clk 0:00:02]}  Ra8# {[%clk 0:00:09]} 0-1


[Site "https://www.chess.com"]